bitfinex-derivatives/quotes_BNBF0:USTF0_20230831
["timestamp","ask_amount","ask_price","bid_price","bid_amount"]
[1693482728203,0.07256274,225.17,224.83,0.18759844]
[1693482728402,0.07256274,225.17,224.82,0.18759844]
[1693482728702,0.07256274,225.17,224.83,0.18759844]
[1693482728903,0.07256274,225.17,224.82,0.18759844]
[1693482729103,0.07256274,225.17,224.83,0.18759844]
[1693482729304,0.07256274,225.17,224.82,0.18759844]
[1693482729504,0.07256274,225.17,224.57,0.95770308]
[1693482729505,3.07255518,225.56,224.83,0.18759844]
[1693482729705,0.07258783,225.18,224.84,0.18759844]
[1693482729905,0.07258783,225.18,224.85,0.18759844]
[1693482730109,0.07258783,225.18,224.86,0.18759844]
[1693482730303,0.07258783,225.17,224.81,0.18759844]
[1693482730510,0.07258783,225.17,224.82,0.18759844]
[1693482730702,0.07258783,225.17,224.8,0.18759844]
[1693482730906,0.07258783,225.17,224.81,0.18759844]
[1693482731101,0.07258783,225.17,224.8,0.18759844]
[1693482731309,0.07258783,225.17,224.81,0.18759844]
[1693482731508,0.07258783,225.17,224.79,0.18759844]
[1693482731707,0.07258783,225.17,224.8,0.18759844]
[1693482731903,0.07258783,225.17,224.79,0.18759844]
[1693482732908,0.07258783,225.17,224.78,0.18759844]
[1693482733108,0.07258783,225.17,224.79,0.18759844]
[1693482733310,0.07258783,225.17,224.78,0.18759844]
[1693482733604,0.07258783,225.17,224.79,0.18759844]
[1693482733809,0.07258783,225.17,224.78,0.18759844]
[1693482734908,0.14517566,225.13,224.78,0.18759844]
[1693482735210,0.07258783,225.08,224.72,0.18759844]
[1693482735413,0.07258783,225.06,224.72,0.18759844]
[1693482735711,0.07258783,225.07,224.69,0.18759844]
[1693482736211,0.8896253,225.07,224.67,0.07192818]
[1693482736414,0.07258783,224.97,224.57,0.07192818]
[1693482737009,0.07258783,225.02,224.58,0.18866006]
[1693482737208,0.07258783,225.02,224.52,0.18866006]
[1693482737404,0.88979025,225.01,224.59,0.18866006]
[1693482737609,0.81720242,225.01,224.51,0.18866006]
[1693482737810,0.81720242,225.0,224.51,0.18866006]
[1693482738012,0.81720242,225.0,224.47,0.18866006]
[1693482738214,0.07258783,225.06,224.52,0.18866006]
[1693482738510,0.07258783,225.06,224.46,0.07192818]
[1693482738511,0.81714498,225.05,224.53,0.18866006]
[1693482738712,0.81714498,225.06,224.48,0.18866006]
[1693482738912,0.81714498,225.04,224.49,0.18866006]
[1693482739211,0.07258783,225.11,224.51,0.07192818]
[1693482739411,0.81693084,225.1,224.51,0.07192818]
[1693482739611,0.81693084,225.1,224.52,0.18866006]
[1693482739807,0.81693084,225.11,224.52,0.18866006]
[1693482740008,0.81693084,225.12,224.5,0.18866006]
[1693482740213,0.81693084,225.11,224.51,0.18866006]
[1693482740408,0.81693084,225.1,224.5,0.26058824]
[1693482740614,0.81693084,225.1,224.52,0.18866006]
[1693482740913,0.81693084,225.09,224.53,0.18866006]
[1693482741117,0.81693084,225.13,224.51,0.18866006]
[1693482741310,0.81693084,225.08,224.51,0.18866006]
[1693482741512,0.81693084,225.07,224.51,0.18866006]
[1693482741716,0.81693084,225.06,224.51,0.18866006]
[1693482741917,0.81693084,225.06,224.5,0.18866006]
[1693482742113,0.88951867,225.15,224.49,0.18866006]
[1693482742418,0.07258783,225.1,224.49,0.18866006]
[1693482742717,0.81693084,225.09,224.45,0.18866006]
[1693482742912,0.88951867,225.11,224.5,0.18866006]
[1693482743117,0.81693084,225.1,224.51,0.18866006]
[1693482743312,0.81693084,225.1,224.41,0.18866006]
[1693482744115,0.88951867,225.1,224.4,0.18866006]
[1693482744516,0.81693084,225.09,224.4,0.18866006]
[1693482744916,0.81693084,225.08,224.41,0.18866006]
[1693482745118,0.81693084,225.07,224.42,0.18866006]
[1693482745319,0.81693084,225.11,224.42,0.18866006]
[1693482745518,0.81693084,225.11,224.37,0.07192818]
[1693482745519,0.81693084,225.11,224.43,0.18866006]
[1693482745718,0.07258783,225.09,224.38,0.18866006]
[1693482746018,0.81693084,225.08,224.44,0.18866006]
[1693482746224,0.07258783,225.06,224.39,0.18866006]
[1693482746417,0.07258783,225.06,224.45,0.18866006]
[1693482746618,0.81693084,225.05,224.45,0.18866006]
[1693482746921,0.81693084,225.06,224.46,0.18866006]
[1693482747120,0.81693084,225.05,224.3,0.18866006]
[1693482747314,0.81693084,225.05,224.29,0.18866006]
[1693482747513,0.81693084,225.05,224.3,0.18866006]
[1693482747720,0.81693084,225.05,224.29,0.18866006]
[1693482747922,0.81693084,225.04,224.3,0.18866006]
[1693482748221,0.81693084,225.03,224.31,0.18866006]
[1693482748416,0.81693084,225.08,224.27,0.18866006]
[1693482749015,0.81693084,225.1,224.25,0.18866006]
[1693482749220,0.81693084,225.09,224.26,0.18866006]
[1693482749415,0.81693084,225.1,224.25,0.18866006]
[1693482749617,0.81693084,225.1,224.26,0.18866006]
[1693482749818,0.81693084,225.1,224.25,0.18866006]
[1693482750020,0.88951867,225.12,224.26,0.18866006]
[1693482750321,0.81693084,225.11,224.27,0.18866006]
[1693482750521,0.81693084,225.12,224.24,0.26058824]
[1693482750722,0.81693084,225.11,224.25,0.18866006]
[1693482750918,0.81693084,225.11,224.26,0.18866006]
[1693482751121,0.81693084,225.11,224.24,0.18866006]
[1693482751323,0.81693084,225.11,224.25,0.18866006]
[1693482751525,0.81693084,225.11,224.24,0.26058824]
[1693482751818,0.81693084,225.11,224.25,0.18866006]
[1693482752024,0.81693084,225.11,224.26,0.18866006]
[1693482752223,0.81693084,225.12,224.23,0.18866006]
[1693482752524,0.81693084,225.11,224.23,0.26058824]
[1693482752723,0.81693084,225.11,224.24,0.18866006]
[1693482752922,0.81693084,225.1,224.25,0.18866006]
[1693482753118,0.81693084,225.12,224.25,0.18866006]
[1693482753423,0.81693084,225.11,224.26,0.18866006]
[1693482753619,0.81693084,225.12,224.25,0.18866006]
[1693482753823,0.81693084,225.11,224.26,0.18866006]
[1693482754023,0.81693084,225.1,224.27,0.18866006]
[1693482754219,0.81693084,225.09,224.28,0.18866006]
[1693482754425,0.81693084,225.12,224.25,0.18866006]
[1693482754623,0.81693084,225.11,224.26,0.18866006]
[1693482754822,0.81693084,225.12,224.25,0.18866006]
[1693482755020,0.81693084,225.11,224.26,0.18866006]
[1693482755219,0.81693084,225.1,224.27,0.18866006]
[1693482755420,0.81693084,225.09,224.28,0.18866006]
[1693482755625,0.81693084,225.13,224.25,0.18866006]
[1693482755821,0.81693084,225.12,224.26,0.18866006]
[1693482756021,0.81693084,225.13,224.25,0.18866006]
[1693482756227,0.81693084,225.12,224.26,0.18866006]
[1693482756526,0.81693084,225.11,224.27,0.18866006]
[1693482756727,0.88951867,225.13,224.25,0.18866006]
[1693482756927,0.81693084,225.12,224.26,0.18866006]
[1693482757127,0.81693084,225.12,224.27,0.18866006]
[1693482757528,0.81693084,225.12,224.28,0.18866006]
[1693482757724,0.81693084,225.12,224.24,0.18866006]
[1693482758022,0.81693084,225.12,224.25,0.18866006]
[1693482758224,0.81693084,225.13,224.25,0.18866006]
[1693482758424,0.81693084,225.11,224.25,0.18866006]
[1693482758628,0.81693084,225.1,224.28,0.07192818]
[1693482758929,0.81693084,225.16,224.29,0.26058824]
[1693482759129,0.81693084,225.09,224.3,0.18866006]
[1693482759430,0.81693084,225.15,224.3,0.18866006]
[1693482759623,0.81693084,225.08,224.3,0.18866006]
[1693482759823,0.81693084,225.14,224.3,0.18866006]
[1693482760031,0.81693084,225.13,224.3,0.18866006]
[1693482760329,0.81693084,225.16,224.3,0.18866006]
[1693482760528,0.81693084,225.15,224.3,0.18866006]
[1693482760726,0.81693084,225.14,224.31,0.07192818]
[1693482760930,0.81693084,225.13,224.32,0.18866006]
[1693482761129,0.81693084,225.12,224.32,0.18866006]
[1693482761324,0.81693084,225.15,224.32,0.18866006]
[1693482761529,0.81693084,225.14,224.32,0.18866006]
[1693482761724,0.81693084,225.13,224.32,0.18866006]
[1693482761925,0.81693084,225.12,224.32,0.18866006]
[1693482762129,0.81693084,225.15,224.32,0.18866006]
[1693482762326,0.81693084,225.14,224.32,0.18866006]
[1693482762530,0.81693084,225.13,224.32,0.18866006]
[1693482762833,0.81693084,225.12,224.32,0.26058824]
[1693482763132,0.07258783,225.14,224.33,0.18866006]
[1693482763133,0.81693084,225.11,224.33,0.18866006]
[1693482763329,0.81693084,225.13,224.32,0.18866006]
[1693482763527,0.81693084,225.12,224.33,0.26058824]
[1693482763728,0.88951867,225.12,224.34,0.18866006]
[1693482764032,0.07258783,225.07,224.34,0.18866006]
[1693482764233,0.07258783,225.04,224.34,0.18866006]
[1693482764532,0.81693084,225.03,224.35,0.18866006]
[1693482764834,0.88951867,225.04,224.29,0.07192818]
[1693482765035,0.81693084,225.02,224.3,0.18866006]
[1693482765230,0.81693084,225.03,224.3,0.26058824]
[1693482765426,0.81693084,225.01,224.31,0.18866006]
[1693482765634,0.81693084,225.02,224.32,0.07192818]
[1693482765830,0.81693084,225.01,224.33,0.26058824]
[1693482766033,0.81693084,225.02,224.34,0.18866006]
[1693482766628,0.81693084,225.02,224.4,0.07192818]
[1693482766833,0.81693084,225.04,224.41,0.26058824]
[1693482767033,0.81693084,225.03,224.42,0.26058824]
[1693482767234,0.81693084,225.06,224.43,0.18866006]
[1693482767433,0.81693084,225.05,224.43,0.18866006]
[1693482767635,0.81693084,225.04,224.43,0.18866006]
[1693482767831,0.88951867,225.03,224.46,0.07192818]
[1693482768034,0.81693084,225.02,224.47,0.18866006]
[1693482769739,0.81693084,225.02,224.52,0.07192818]
[1693482769740,0.07258783,224.97,224.52,0.07192818]
[1693482770038,0.07258783,224.97,224.53,0.18866006]
[1693482770831,0.07258783,224.97,224.53,0.26058824]
[1693482771033,0.07258783,224.97,224.54,0.18866006]
[1693482772037,0.07258783,224.98,224.54,0.26058824]
[1693482772236,0.07258783,224.98,224.55,0.18866006]
[1693482772437,0.07258783,224.97,224.55,0.18866006]
[1693482772739,0.07258783,224.96,224.55,0.18866006]
[1693482772941,0.07258783,224.96,224.53,0.18866006]
[1693482773135,0.07258783,224.96,224.54,0.18866006]
[1693482773333,0.07258783,224.96,224.53,0.18866006]
[1693482773538,0.07258783,224.96,224.54,0.18866006]
[1693482773839,0.07258783,224.96,224.55,0.18866006]
[1693482774038,0.07258783,224.96,224.54,0.18866006]
[1693482774235,0.07258783,224.96,224.55,0.18866006]
[1693482774541,0.07258783,224.95,224.56,0.18866006]
[1693482774741,0.07258783,224.95,224.52,0.26058824]
[1693482774936,0.07258783,224.94,224.53,0.26058824]
[1693482775138,0.07258783,224.94,224.54,0.18866006]
[1693482776739,0.07258783,224.92,224.55,0.07192818]
[1693482776936,0.07258783,224.92,224.56,0.18866006]
[1693482777140,0.07258783,224.92,224.55,0.18866006]
[1693482777338,0.07258783,224.92,224.56,0.18866006]
[1693482777642,0.07258783,224.92,224.57,0.18866006]
[1693482777939,0.07258783,224.92,224.58,0.18866006]
[1693482778143,0.07258783,224.92,224.59,0.18866006]
[1693482778339,0.07258783,224.92,224.6,0.18866006]
[1693482778537,0.07258783,224.92,224.56,0.26058824]
[1693482778744,0.07258783,224.92,224.57,0.18866006]
[1693482779141,0.07258783,224.92,224.56,0.18866006]
[1693482779345,0.07258783,224.93,224.57,0.18866006]
[1693482779546,0.07258783,224.92,224.57,0.18866006]
[1693482779752,0.07258783,224.92,224.56,0.18866006]
[1693482780047,0.07258783,224.92,224.57,0.18866006]
[1693482780348,0.07258783,224.92,224.58,0.18866006]
[1693482780541,0.07258783,224.92,224.59,0.18866006]
[1693482781042,0.07258783,224.92,224.6,0.18866006]
[1693482781245,0.07258783,224.92,224.56,0.18866006]
[1693482781444,0.07258783,224.92,224.57,0.18866006]
[1693482781740,0.07258783,224.92,224.58,0.18866006]
[1693482781946,0.07258783,224.92,224.56,0.18866006]
[1693482782148,0.07258783,224.92,224.57,0.18866006]
[1693482782346,0.07258783,224.92,224.56,0.26058824]
[1693482782541,0.07258783,224.93,224.57,0.18866006]
[1693482782745,0.07258783,224.93,224.57,0.26058824]
[1693482782943,0.07258783,224.94,224.58,0.18866006]
[1693482783949,0.07258783,224.94,224.58,0.26058824]
[1693482784143,0.07258783,224.95,224.59,0.26058824]
[1693482784346,0.07258783,224.95,224.6,0.18866006]
[1693482784547,0.07258783,224.95,224.59,0.18866006]
[1693482784748,0.07258783,224.95,224.6,0.18866006]
[1693482784949,0.07258783,224.95,224.59,0.26058824]
[1693482785249,0.07258783,224.95,224.6,0.18866006]
[1693482785652,0.07258783,224.95,224.61,0.18866006]
[1693482785852,0.07258783,224.95,224.62,0.18866006]
[1693482786051,0.07258783,224.94,224.63,0.18866006]
[1693482786350,0.07258783,224.94,224.64,0.18866006]
[1693482786551,0.07258783,224.94,224.65,0.18866006]
[1693482786851,0.07258783,224.94,224.66,0.18866006]
[1693482787150,0.07258783,224.94,224.67,0.18866006]
[1693482787451,0.07258783,224.94,224.58,0.07192818]
[1693482787646,0.07258783,224.94,224.59,0.1886379]
[1693482787950,0.07258783,224.94,224.59,0.26056608]
[1693482788151,0.07258783,224.94,224.6,0.1886379]
[1693482788549,0.96783779,225.02,224.6,0.1886379]
[1693482788550,0.07258783,224.95,224.6,0.1886379]
[1693482789549,0.07258783,224.94,224.6,0.1886379]
[1693482789751,0.07258783,224.94,224.61,0.1886379]
[1693482789950,0.07258783,224.94,224.62,0.1886379]
[1693482790149,0.07258783,224.94,224.63,0.1886379]
[1693482790349,0.07258783,224.94,224.64,0.1886379]
[1693482790546,0.07258783,224.94,224.6,0.1886379]
[1693482790753,0.07258783,224.94,224.61,0.1886379]
[1693482790953,0.07258783,224.93,224.6,0.1886379]
[1693482791152,0.07258783,224.93,224.61,0.1886379]
[1693482791354,0.07258783,224.93,224.58,0.07192818]
[1693482791355,0.07258783,224.93,224.59,0.1886379]
[1693482791653,0.07258783,224.93,224.6,0.1886379]
[1693482791848,0.07258783,224.93,224.58,0.07192818]
[1693482791849,0.07258783,224.93,224.59,0.1886379]
[1693482792049,0.07258783,224.93,224.6,0.1886379]
[1693482792250,0.07258783,224.93,224.59,0.1886379]
[1693482792446,0.07258783,224.93,224.6,0.1886379]
[1693482792649,0.07258783,224.93,224.59,0.1886379]
[1693482792854,0.07258783,224.92,224.59,0.26056608]
[1693482793153,0.07258783,224.92,224.6,0.1886379]
[1693482793753,0.07258783,224.93,224.6,0.1886379]
[1693482794647,0.07258783,224.94,224.6,0.26056608]
[1693482794848,0.07258783,224.94,224.61,0.1886379]
[1693482795056,0.07258783,224.94,224.61,0.26056608]
[1693482795354,0.07258783,224.94,224.62,0.1886379]
[1693482795948,0.07258783,224.94,224.6,0.07192818]
[1693482795949,0.07258783,224.94,224.61,0.1886379]
[1693482796153,0.07258783,224.94,224.62,0.1886379]
[1693482796352,0.07258783,224.94,224.61,0.1886379]
[1693482796549,0.07258783,224.94,224.62,0.1886379]
[1693482796749,0.07258783,224.94,224.61,0.1886379]
[1693482796952,0.07258783,224.94,224.62,0.1886379]
[1693482797155,0.07258783,224.94,224.61,0.1886379]
[1693482797355,0.07258783,224.94,224.62,0.1886379]
[1693482797655,0.07258783,224.94,224.63,0.1886379]
[1693482797850,0.07258783,224.94,224.61,0.1886379]
[1693482798054,0.07258783,224.94,224.62,0.1886379]
[1693482798251,0.07258783,224.94,224.61,0.1886379]
[1693482798555,0.07258783,224.93,224.62,0.1886379]
[1693482798755,0.07258783,224.93,224.61,0.1886379]
[1693482798959,0.07258783,224.93,224.62,0.1886379]
[1693482799159,0.07258783,224.93,224.61,0.1886379]
[1693482799460,0.07258783,224.93,224.62,0.1886379]
[1693482799660,0.07258783,224.93,224.6,0.07192818]
[1693482799661,0.07258783,224.92,224.61,0.1886379]
[1693482799960,0.07258783,224.92,224.62,0.26056608]
[1693482800261,0.07258783,224.92,224.63,0.1886379]
[1693482801762,0.07258783,224.9,224.64,0.07192818]
[1693482801963,0.07258783,224.9,224.65,0.1886379]
[1693482803357,0.07258783,224.91,224.65,0.1886379]
[1693482803559,0.07258783,224.9,224.65,0.1886379]
[1693482804957,0.07258783,224.9,224.66,0.1886379]
[1693482805161,0.07258783,224.89,224.65,0.1886379]
[1693482805362,0.07258783,224.89,224.66,0.1886379]
[1693482805663,0.07258783,224.89,224.67,0.1886379]
[1693482805863,0.07258783,224.89,224.64,0.1886379]
[1693482806061,0.07258783,224.89,224.65,0.18878007]
[1693482806261,0.07258783,224.89,224.64,0.18878007]
[1693482806557,0.07258783,224.89,224.65,0.18878007]
[1693482806762,0.07258783,224.89,224.64,0.18878007]
[1693482807066,0.07258783,224.89,224.65,0.18878007]
[1693482807267,0.07258783,224.89,224.64,0.18878007]
[1693482808765,0.07258783,224.9,224.64,0.26070825]
[1693482808966,0.07258783,224.9,224.65,0.18878007]
[1693482809162,0.07258783,224.9,224.64,0.26070825]
[1693482809369,0.07258783,224.9,224.65,0.18878007]
[1693482810366,0.07258783,224.9,224.65,0.26070825]
[1693482810562,0.07258783,224.9,224.66,0.18878007]
[1693482812568,0.07258783,224.97,224.69,0.07192818]
[1693482812868,0.07258783,224.96,224.7,0.18878007]
[1693482813362,0.07258783,224.97,224.7,0.18878007]
[1693482814568,0.07258783,224.98,224.7,0.18878007]
[1693482814769,0.07258783,224.98,224.71,0.18878007]
[1693482814965,0.07258783,224.98,224.69,0.18878007]
[1693482815168,0.07258783,224.98,224.7,0.18878007]
[1693482815364,3.07465034,225.34,224.69,0.18878007]
[1693482815567,0.07274332,224.98,224.7,0.18878007]
[1693482815866,0.07274332,224.98,224.71,0.18878007]
[1693482816063,0.07274332,224.98,224.72,0.18878007]
[1693482816268,0.07274332,224.98,224.68,0.18878007]
[1693482816562,0.07274332,224.98,224.69,0.18878007]
[1693482816767,0.07274332,224.98,224.68,0.18878007]
[1693482816968,0.07274332,224.98,224.69,0.18878007]
[1693482817163,0.07274332,224.98,224.7,0.18878007]
[1693482817370,0.07274332,224.98,224.68,0.18878007]
[1693482817565,0.07274332,224.98,224.69,0.18878007]
[1693482817764,0.07274332,224.98,224.67,0.18878007]
[1693482818164,0.07274332,224.97,224.67,0.18878007]
[1693482818669,0.07274332,224.93,224.67,0.18878007]
[1693482819069,0.07274332,224.93,224.62,0.18878007]
[1693482819370,0.07274332,224.93,224.63,0.18878007]
[1693482819670,0.07274332,224.94,224.64,0.18878007]
[1693482819870,0.07274332,224.94,224.62,0.26097256]
[1693482820071,0.07274332,224.94,224.63,0.18878007]
[1693482820272,0.07274332,224.93,224.63,0.18878007]
[1693482820472,0.07274332,224.93,224.62,0.18878007]
[1693482823869,0.07274332,224.93,224.63,0.18878007]
[1693482824068,0.07274332,224.93,224.64,0.18878007]
[1693482824268,0.07274332,224.93,224.65,0.18878007]
[1693482824476,0.07274332,224.93,224.62,0.18878007]
[1693482824674,0.07274332,224.93,224.63,0.18878007]
[1693482824874,0.07274332,224.93,224.62,0.18878007]
[1693482825072,0.07274332,224.93,224.63,0.18878007]
[1693482825273,0.07274332,224.93,224.64,0.18878007]
[1693482825473,0.07274332,224.93,224.65,0.18878007]
[1693482825670,0.07274332,224.93,224.66,0.18878007]
[1693482825874,0.07274332,224.93,224.61,0.07219249]
[1693482825875,0.07274332,224.93,224.62,0.18878007]
[1693482826174,0.07274332,224.93,224.63,0.18878007]
[1693482826367,0.07274332,224.93,224.64,0.18878007]
[1693482826570,0.07274332,224.93,224.65,0.18878007]
[1693482826869,0.07274332,224.93,224.66,0.18878007]
[1693482827070,0.07274332,224.93,224.62,0.18878007]
[1693482827275,0.07274332,224.93,224.63,0.18878007]
[1693482827470,0.07274332,224.93,224.64,0.18878007]
[1693482827677,0.07274332,224.93,224.54,0.14438499]
[1693482827678,0.07274332,224.94,224.65,0.18878007]
[1693482827870,0.07274332,224.94,224.66,0.18878007]
[1693482828071,0.07274332,224.94,224.67,0.18878007]
[1693482828275,0.07274332,224.94,224.68,0.18878007]
[1693482828577,0.07274332,224.94,224.69,0.18878007]
[1693482828876,0.07274332,224.94,224.62,0.07219249]
[1693482829078,0.07274332,224.94,224.63,0.18865569]
[1693482830375,0.07274332,224.95,224.63,0.18865569]
[1693482831679,0.07274332,224.95,224.63,0.26084818]
[1693482831879,0.07274332,224.95,224.64,0.18865569]
[1693482832075,0.07274332,225.0,224.68,0.07219249]
[1693482832276,0.07274332,225.0,224.69,0.18865569]
[1693482832678,0.07274332,224.99,224.69,0.18865569]
[1693482832877,0.07274332,224.99,224.7,0.18865569]
[1693482833078,0.07274332,224.99,224.71,0.18865569]
[1693482833278,0.07274332,224.99,224.72,0.18865569]
[1693482833576,0.07274332,224.99,224.73,0.18865569]
[1693482833777,0.07274332,224.99,224.66,0.07219249]
[1693482833973,0.07274332,224.99,224.67,0.18842089]
[1693482834781,0.07274332,224.95,224.67,0.18842089]
[1693482834976,0.07274332,224.94,224.68,0.18842089]
[1693482835175,0.07274332,224.94,224.54,0.14438499]
[1693482835176,0.07274332,224.94,224.6,0.07219249]
[1693482835476,0.07274332,224.94,224.61,0.18880637]
[1693482835878,0.07274332,224.94,224.61,0.26099886]
[1693482836182,0.07274332,224.96,224.63,0.07219249]
[1693482836379,0.07274332,224.96,224.64,0.18880637]
[1693482836576,0.07274332,224.97,224.64,0.18880637]
[1693482836774,0.07274332,224.96,224.64,0.18880637]
[1693482842787,0.07274332,224.96,224.64,0.26099886]
[1693482842985,0.07274332,224.96,224.65,0.18880637]
[1693482843382,0.07274332,224.96,224.66,0.18880637]
[1693482843583,0.07274332,224.96,224.67,0.18880637]
[1693482843785,0.07274332,224.96,224.68,0.18880637]
[1693482843986,0.07274332,224.96,224.64,0.18880637]
[1693482844188,0.07274332,224.96,224.65,0.18880637]
[1693482844891,0.07274332,224.95,224.65,0.18880637]
[1693482845090,0.07274332,224.95,224.64,0.18880637]
[1693482845286,0.07274332,224.95,224.66,0.18880637]
[1693482845491,0.07274332,224.95,224.67,0.18880637]
[1693482845684,0.07274332,224.95,224.62,0.07219249]
[1693482845685,0.07274332,224.95,224.63,0.18880637]
[1693482845883,0.07274332,224.95,224.64,0.18880637]
[1693482846088,0.07274332,224.95,224.65,0.18880637]
[1693482846390,0.07274332,224.95,224.66,0.18880637]
[1693482846585,0.07274332,224.95,224.67,0.18880637]
[1693482846789,0.07274332,224.95,224.68,0.18880637]
[1693482846988,0.07274332,224.95,224.63,0.07219249]
[1693482846989,0.07274332,224.95,224.69,0.18880637]
[1693482847189,0.07274332,224.95,224.63,0.07219249]
[1693482847391,0.07274332,224.95,224.64,0.18873233]
[1693482849495,0.07274332,224.94,224.64,0.18873233]
[1693482850498,0.07274332,224.94,224.64,0.26092482]
[1693482850801,0.07274332,224.94,224.65,0.18873233]
[1693482851200,0.07274332,224.93,224.65,0.18873233]
[1693482851505,0.07274332,224.93,224.66,0.18873233]
[1693482851699,0.07274332,224.93,224.67,0.18873233]
[1693482852000,0.07274332,224.93,224.68,0.18873233]
[1693482852202,0.07274332,224.93,224.64,0.18873233]
[1693482852501,0.07274332,224.92,224.65,0.18873233]
[1693482856203,0.07274332,224.93,224.65,0.18873233]
[1693482856404,0.07274332,224.93,224.65,0.26092482]
[1693482856605,0.07274332,224.93,224.66,0.18873233]
[1693482857403,0.14548665,224.96,224.7,0.07219249]
[1693482857606,0.07274332,224.98,224.71,0.18873233]
[1693482859102,0.07274332,224.99,224.71,0.18873233]
[1693482859404,0.07274332,224.98,224.72,0.18873233]
[1693482859608,0.07274332,224.98,224.69,0.18873233]
[1693482860805,0.07274332,224.98,224.68,0.26092482]
[1693482861005,0.07274332,224.98,224.69,0.18873233]
[1693482862203,0.07274332,224.98,224.68,0.18873233]
[1693482862409,0.07274332,224.98,224.69,0.18873233]
[1693482862708,0.07274332,224.98,224.7,0.18873233]
[1693482862908,0.07274332,224.98,224.68,0.18873233]
[1693482863108,0.07274332,224.98,224.69,0.18873233]
[1693482863310,0.07274332,224.98,224.68,0.18873233]
[1693482863510,0.07274332,224.98,224.68,0.26092482]
[1693482863706,0.07274332,224.98,224.69,0.18873233]
[1693482863908,0.07274332,224.99,224.69,0.18873233]
[1693482865110,0.07274332,225.0,224.69,0.18873233]
[1693482866616,0.07274332,225.01,224.69,0.18873233]
[1693482867214,0.07274332,225.01,224.69,0.26092482]
[1693482867416,0.07274332,225.01,224.7,0.18873233]
[1693482868515,0.07274332,225.01,224.69,0.18873233]
[1693482868713,0.07274332,225.01,224.7,0.18873233]
[1693482868914,0.07274332,225.01,224.71,0.18873233]
[1693482869115,0.07274332,225.01,224.68,0.18873233]
[1693482869411,0.07274332,225.01,224.69,0.18873233]
[1693482869616,0.07274332,225.01,224.68,0.18873233]
[1693482869812,0.07274332,225.01,224.69,0.18873233]
[1693482870014,0.07274332,225.01,224.7,0.18873233]
[1693482870320,0.07274332,225.01,224.71,0.18873233]
[1693482870522,0.07274332,225.01,224.68,0.18873233]
[1693482870720,0.07274332,225.01,224.69,0.18873233]
[1693482871022,0.07274332,225.01,224.7,0.18873233]
[1693482871219,0.07274332,225.01,224.68,0.18873233]
[1693482871415,0.07274332,225.01,224.69,0.18873233]
[1693482871722,0.07274332,225.01,224.67,0.07219249]
[1693482871723,0.07274332,225.01,224.7,0.18873233]
[1693482871917,0.07274332,225.01,224.71,0.18873233]
[1693482872119,0.07274332,225.01,224.68,0.18873233]
[1693482872316,0.07274332,225.01,224.69,0.18873233]
[1693482872520,0.14548665,225.04,224.67,0.07219249]
[1693482872521,0.07274332,225.02,224.68,0.18873233]
[1693482872719,0.07274332,225.02,224.69,0.18873233]
[1693482872915,0.07274332,225.02,224.68,0.18873233]
[1693482873120,0.07274332,225.02,224.69,0.18873233]
[1693482873420,0.07274332,225.02,224.7,0.18873233]
[1693482873621,0.07274332,225.02,224.68,0.18873233]
[1693482874923,0.07274332,225.01,224.68,0.18873233]
[1693482875122,0.07274332,225.01,224.67,0.18873233]
[1693482875325,0.07274332,225.01,224.68,0.18873233]
[1693482875519,0.07274332,225.01,224.67,0.18873233]
[1693482882432,0.07274332,225.01,224.67,0.26092482]
[1693482882728,0.07274332,225.01,224.68,0.18873233]
[1693482882929,0.07274332,225.01,224.67,0.26092482]
[1693482883129,0.07274332,225.01,224.68,0.18873233]
[1693482883529,0.07274332,225.01,224.67,0.26092482]
[1693482883730,0.07274332,225.01,224.68,0.18873233]
[1693482883931,0.07274332,225.01,224.67,0.18873233]
[1693482884232,0.07274332,225.0,224.68,0.18873233]
[1693482884730,0.07274332,224.99,224.69,0.18873233]
[1693482884931,0.07274332,224.99,224.67,0.18873233]
[1693482885130,0.07274332,224.99,224.68,0.18873233]
[1693482885327,0.07274332,224.99,224.67,0.18873233]
[1693482885532,0.07274332,224.99,224.68,0.18873233]
[1693482885733,0.07274332,224.99,224.67,0.18873233]
[1693482885932,0.07274332,224.99,224.68,0.18873233]
[1693482886132,0.07274332,224.99,224.67,0.18873233]
[1693482886327,0.07274332,224.99,224.68,0.18873233]
[1693482886532,0.07274332,224.99,224.67,0.18873233]
[1693482886834,0.07274332,224.99,224.68,0.18873233]
[1693482887133,0.07274332,224.98,224.69,0.18873233]
[1693482887333,0.07274332,224.98,224.6,0.14438499]
[1693482887334,0.07274332,224.98,224.68,0.18873233]
[1693482887531,0.07274332,224.98,224.69,0.18873233]
[1693482887727,0.07274332,224.98,224.68,0.18873233]
[1693482887931,0.07274332,224.98,224.69,0.18873233]
[1693482888128,0.07274332,224.98,224.68,0.18873233]
[1693482888431,0.07274332,224.98,224.69,0.18873233]
[1693482888633,0.07274332,224.98,224.68,0.26092482]
[1693482888835,0.07274332,224.98,224.69,0.18873233]
[1693482889032,0.07274332,224.98,224.68,0.18873233]
[1693482889233,0.07274332,224.98,224.69,0.18873233]
[1693482890132,0.07274332,224.97,224.69,0.18873233]
[1693482891032,0.07274332,224.96,224.69,0.26092482]
[1693482891231,0.07274332,224.9,224.64,0.07219249]
[1693482891434,0.07274332,224.91,224.65,0.26103857]